bitfinex-derivatives/quotes_BNBF0:USTF0_20250331
["timestamp","ask_amount","ask_price","bid_price","bid_amount"]
[1743397607369,0.30484709,603.28,602.36,0.33202735]
[1743397607771,5.41226312,603.28,602.36,0.33202735]
[1743397607977,4.71546195,603.27,602.36,0.33202735]
[1743397608176,0.82208066,603.26,602.36,0.33202735]
[1743397608577,3.72100831,603.26,602.36,0.33202735]
[1743397608879,1.38640772,603.25,602.37,0.28475354]
[1743397609075,2.20848838,603.25,602.36,0.33202735]
[1743397609277,0.28872121,603.27,602.37,0.28473695]
[1743397609582,2.13897896,603.35,602.36,0.33202735]
[1743397609881,0.30484296,603.34,602.36,0.33202735]
[1743397610076,8.64511631,603.35,602.36,0.33202735]
[1743397610274,5.74618866,603.34,602.36,0.33202735]
[1743397610478,5.03790661,603.33,602.36,0.33202735]
[1743397610679,3.6072097,603.32,602.36,0.33202735]
[1743397610982,1.11497217,603.31,602.36,0.33202735]
[1743397611175,6.86377116,603.31,602.36,0.33202735]
[1743397611380,1.38965135,603.3,602.36,0.33202735]
[1743397611574,6.87055809,603.31,602.36,0.33202735]
[1743397611881,4.43712906,603.3,602.36,0.33202735]
[1743397612075,0.82403554,603.29,602.36,0.33202735]
[1743397612276,2.89892765,603.29,602.36,0.33202735]
[1743397612476,5.11261454,603.29,602.36,0.33202735]
[1743397612681,2.21368689,603.28,602.36,0.33202735]
[1743397612875,2.89892765,603.37,602.36,0.33202735]
[1743397613082,1.38960179,603.37,602.36,0.33202735]
[1743397613275,5.75522307,603.74,602.36,0.33202735]
[1743397613475,5.75522307,603.73,602.36,0.33202735]
[1743397613681,5.75522307,603.72,602.36,0.33202735]
[1743397613879,0.28877631,603.45,602.36,0.33202735]
[1743397617378,1.11736398,603.44,602.36,0.33202735]
[1743397617784,1.11736398,603.43,602.36,0.33202735]
[1743397618180,3.25962239,603.43,602.36,0.33202735]
[1743397618380,5.75522307,603.42,602.36,0.33202735]
[1743397618581,5.75522307,603.41,602.36,0.33202735]
[1743397618886,5.75522307,603.4,602.36,0.33202735]
[1743397619086,5.75522307,603.39,602.36,0.33202735]
[1743397619287,7.47822307,603.38,602.36,0.33202735]
[1743397619480,5.75522307,603.37,602.36,0.33202735]
[1743397619686,2.14225841,603.36,602.36,0.33202735]
[1743397619888,5.75522307,603.36,602.36,0.33202735]
[1743397620089,5.04740477,603.35,602.36,0.33202735]
[1743397620283,3.61296466,603.34,602.36,0.33202735]
[1743397620486,1.11736398,603.33,602.36,0.33202735]
[1743397620690,6.87258705,603.33,602.36,0.33202735]
[1743397620891,5.75541886,603.32,602.37,0.28455983]
[1743397621098,5.75543053,603.31,602.38,0.33201633]
[1743397621295,2.14252359,603.3,602.38,0.33201633]
[1743397621496,5.04766995,603.3,602.39,0.28455983]
[1743397621692,3.91779003,603.29,602.4,0.33200531]
[1743397621893,2.44734896,603.28,602.41,0.28455983]
[1743397622093,0.30482537,603.27,602.41,0.28455983]
[1743397622297,1.12896642,603.27,602.41,0.28455983]
[1743397622598,8.66146984,603.27,602.41,0.3319998]
[1743397622797,5.75632348,603.26,602.41,0.3319998]
[1743397622993,0.82414105,603.25,602.41,0.3319998]
[1743397623198,5.75633775,603.26,602.41,0.3319998]
[1743397623398,0.82414105,603.25,602.41,0.3319998]
[1743397623597,2.90514636,603.25,602.41,0.3319998]
[1743397623799,7.34284415,603.25,602.41,0.3319998]
[1743397623999,4.43769779,603.24,602.41,0.3319998]
[1743397624201,0.82414105,603.23,602.41,0.3319998]
[1743397624793,2.90514636,603.23,602.41,0.3319998]
[1743397624993,4.29497587,603.23,602.41,0.3319998]
[1743397625197,2.21395691,603.22,602.41,0.3319998]
[1743397625595,5.75642779,603.37,602.41,0.3319998]
[1743397625794,2.14279507,603.36,602.41,0.3319998]
[1743397625998,0.28883863,603.26,602.41,0.3319998]
[1743397626199,5.04794143,603.35,602.41,0.3319998]
[1743397626394,3.61363272,603.34,602.41,0.3319998]
[1743397626594,5.75642779,603.34,602.41,0.3319998]
[1743397626795,3.72927376,603.33,602.41,0.3319998]
[1743397626997,3.61363272,603.32,602.41,0.3319998]
[1743397627193,0.8241274,603.31,602.41,0.3319998]
[1743397627401,1.94149138,603.31,602.41,0.3319998]
[1743397627594,3.33132089,603.31,602.41,0.3319998]
[1743397628197,2.21395691,603.31,602.41,0.3319998]
[1743397628499,1.11736398,603.3,602.41,0.3319998]
[1743397629097,4.43792642,603.33,602.41,0.3319998]
[1743397629298,7.34307278,603.32,602.41,0.3319998]
[1743397629494,2.21395691,603.31,602.41,0.3319998]
[1743397629800,5.11910327,603.31,602.41,0.3319998]
[1743397630000,2.21395691,603.3,602.41,0.3319998]
[1743397630200,2.21408549,603.3,602.41,0.3319998]
[1743397630400,0.28885301,603.34,602.41,0.3319998]
[1743397630802,5.0479667,603.35,602.41,0.3319998]
[1743397630997,3.61381737,603.34,602.41,0.3319998]
[1743397631195,1.11736398,603.33,602.41,0.3319998]
[1743397631396,5.55530875,603.33,602.41,0.3319998]
[1743397631595,0.8241274,603.32,602.41,0.3319998]
[1743397632102,3.72927376,603.32,602.41,0.3319998]
[1743397632298,3.61381737,603.31,602.41,0.3319998]
[1743397632495,5.75656377,603.31,602.41,0.3319998]
[1743397632704,1.94149138,603.3,602.41,0.3319998]
[1743397633002,8.66173984,603.3,602.41,0.3319998]
[1743397633195,5.75659348,603.29,602.41,0.3319998]
[1743397633401,5.04792247,603.28,602.41,0.3319998]
[1743397633601,3.61381737,603.27,602.41,0.3319998]
[1743397633803,5.75663395,603.27,602.41,0.3319998]
[1743397634000,5.32318056,603.26,602.41,0.3319998]
[1743397634195,8.6620848,603.25,602.41,0.3319998]
[1743397634395,5.75693844,603.24,602.41,0.3319998]
[1743397634596,2.14298029,603.23,602.41,0.3319998]
[1743397634800,5.75693844,603.23,602.41,0.3319998]
[1743397635000,5.04812665,603.22,602.41,0.3319998]
[1743397635200,3.61395815,603.21,602.41,0.3319998]
[1743397635401,5.75693844,603.21,602.41,0.3319998]
[1743397635603,2.14298029,603.2,602.41,0.3319998]
[1743397635798,3.72930658,603.2,602.41,0.3319998]
[1743397636004,3.61395815,603.19,602.41,0.3319998]
[1743397636203,5.75693844,603.19,602.41,0.3319998]
[1743397636404,3.26034427,603.18,602.41,0.3319998]
[1743397636600,6.87430242,603.18,602.41,0.3319998]
[1743397636806,5.75693844,603.17,602.41,0.3319998]
[1743397637104,5.75693844,603.16,602.41,0.3319998]
[1743397637299,2.14298029,603.15,602.41,0.3319998]
[1743397637502,0.82416022,603.15,602.41,0.3319998]
[1743397637699,3.72946943,603.15,602.41,0.3319998]
[1743397637903,3.90310136,603.14,602.41,0.3319998]
[1743397638205,2.14323998,603.13,602.41,0.3319998]
[1743397638599,5.04838634,603.13,602.41,0.3319998]
[1743397638802,3.6141812,603.12,602.41,0.3319998]
[1743397639003,1.11736398,603.11,602.41,0.3319998]
[1743397639203,6.87478516,603.11,602.41,0.3319998]
[1743397639403,5.75742118,603.1,602.41,0.3319998]
[1743397639599,5.75742118,603.09,602.41,0.3319998]
[1743397639799,2.14323998,603.08,602.41,0.3319998]
[1743397640001,0.82432307,603.08,602.41,0.3319998]
[1743397640201,3.72946943,603.08,602.41,0.3319998]
[1743397640401,3.6141812,603.07,602.41,0.3319998]
[1743397640600,5.75742118,603.07,602.41,0.3319998]
[1743397640804,2.14323998,603.06,602.41,0.3319998]
[1743397641304,5.04838634,603.06,602.41,0.3319998]
[1743397641505,3.6141812,603.05,602.41,0.3319998]
[1743397641705,0.82432307,603.04,602.41,0.3319998]
[1743397642109,3.72946943,603.04,602.41,0.3319998]
[1743397642301,3.6141812,603.03,602.41,0.3319998]
[1743397642504,0.82432307,603.02,602.41,0.3319998]
[1743397642706,1.94168705,603.02,602.41,0.3319998]
[1743397643003,3.33175674,603.02,602.41,0.3319998]
[1743397643209,2.21439276,603.02,602.41,0.3319998]
[1743397643408,0.28893096,603.07,602.41,0.3319998]
[1743397645805,0.28893096,603.07,602.11,0.28881106]
[1743397648013,0.30502568,603.06,602.11,0.28881106]
[1743397648209,1.11736398,603.05,602.11,0.28881106]
[1743397648415,0.30502568,603.04,600.83,2.52044129]
[1743397648613,0.30502568,603.04,600.94,0.33281192]
[1743397648814,0.30502568,603.04,602.05,0.28900894]
[1743397649010,0.30502568,603.04,600.94,0.33281192]
[1743397649212,3.83763787,603.04,600.95,0.28450961]
[1743397649409,3.83763787,603.04,601.05,0.33275101]
[1743397649610,2.90514636,603.03,601.06,0.28450961]
[1743397649815,8.66115712,603.03,601.08,0.33273441]
[1743397650016,8.66115712,603.02,601.09,0.28450961]
[1743397650210,8.66115712,603.02,601.11,0.3327178]
[1743397650211,5.75601076,603.01,601.11,0.3327178]
[1743397650414,2.14298809,603.0,601.12,0.28450961]
[1743397650611,5.75601076,603.0,601.14,0.3327012]
[1743397650810,2.14298809,602.99,601.15,0.28450961]
[1743397651011,3.72937255,602.99,601.17,0.33268459]
[1743397651215,3.61302267,602.98,601.18,0.28450961]
[1743397651415,5.75601076,602.98,601.2,0.33266799]
[1743397651611,2.14298809,602.97,601.21,0.28450961]
[1743397651816,3.72937255,602.97,601.23,0.33265139]
[1743397652014,3.61302267,602.96,601.24,0.28450961]
[1743397652216,5.75601076,602.96,601.26,0.3326348]
[1743397652415,0.82422619,602.95,601.27,0.28450961]
[1743397652613,5.75443313,602.96,601.29,0.3326182]
[1743397652813,0.28896934,602.94,601.3,0.28450961]
[1743397653016,0.28896934,602.94,601.32,0.3326016]
[1743397653415,6.04310109,602.94,601.33,0.28450961]
[1743397653715,0.82422619,602.93,601.35,0.33258501]
[1743397653915,4.43724886,602.93,601.36,0.28450961]
[1743397654116,4.43257632,602.92,601.38,0.33256842]
[1743397654321,2.21205316,602.91,601.39,0.28450961]
[1743397654522,7.33717828,602.93,601.41,0.33255183]
[1743397654721,4.43065431,602.92,601.42,0.28450961]
[1743397655022,0.28895974,602.9,601.44,0.33253524]
[1743397655222,0.28895974,602.9,601.45,0.28450961]
[1743397655422,2.49963529,602.9,601.47,0.33251866]
[1743397655623,2.49963529,602.9,601.48,0.28450961]
[1743397655824,2.49963529,602.9,601.5,0.33250207]
[1743397656123,2.49963529,602.9,601.51,0.28450961]
[1743397656318,0.28895974,602.9,601.53,0.33248549]
[1743397656520,0.28895974,602.9,601.54,0.28450961]
[1743397656717,0.28895974,602.9,601.56,0.33246891]
[1743397656915,0.28895974,602.9,601.57,0.28450961]
[1743397657121,0.28895974,602.9,601.59,0.33245233]
[1743397657522,0.28895974,602.9,601.6,0.28464741]
[1743397657726,8.65093085,603.17,601.62,0.33243575]
[1743397657927,6.05083055,603.16,601.63,0.28464741]
[1743397658127,2.44392959,603.15,601.65,0.33241918]
[1743397658320,0.30504606,603.14,601.66,0.28464741]
[1743397658524,1.12714524,603.14,601.68,0.3324026]
[1743397658724,0.30504606,603.13,601.68,0.3324026]
[1743397658920,3.55986792,603.13,601.68,0.3324026]
[1743397659121,0.30504606,603.12,601.68,0.3324026]
[1743397659323,1.11736398,603.11,601.68,0.3324026]
[1743397659527,0.30504606,603.1,601.68,0.3324026]
[1743397659726,3.82869806,603.1,601.68,0.3324026]
[1743397659923,1.42241004,603.09,601.68,0.3324026]
[1743397660126,0.30504606,603.08,601.68,0.3324026]
[1743397660423,3.21019242,603.08,601.68,0.3324026]
[1743397660624,8.64670896,603.08,601.68,0.3324026]
[1743397660823,6.04664973,603.07,601.68,0.3324026]
[1743397661026,2.13745788,603.06,601.68,0.3324026]
[1743397661529,5.7415626,603.06,601.68,0.3324026]
[1743397661828,5.04260424,603.05,601.68,0.3324026]
[1743397662025,3.60410472,603.04,601.68,0.3324026]
[1743397662229,5.7415626,603.04,601.68,0.3324026]
[1743397662432,3.25482186,603.03,601.68,0.3324026]
[1743397662626,6.85892658,603.03,601.68,0.3324026]
[1743397662826,5.7415626,603.02,601.68,0.3324026]
[1743397663029,5.7415626,603.01,601.68,0.3324026]
[1743397663226,5.7415626,603.0,601.68,0.3324026]
[1743397663430,2.13745788,602.99,601.68,0.3324026]
[1743397663627,4.4262039,602.99,601.68,0.3324026]
[1743397663829,8.64670896,602.98,601.68,0.3324026]
[1743397664032,5.7415626,602.97,601.68,0.3324026]
[1743397664332,5.73625898,602.96,601.68,0.3324026]
[1743397664532,5.73625898,602.95,601.68,0.3324026]
[1743397664734,2.13745788,602.94,601.68,0.3324026]
[1743397664934,3.72724554,602.94,601.68,0.3324026]
[1743397665133,3.5988011,602.93,601.68,0.3324026]
[1743397665330,0.30509681,602.92,601.69,0.2847583]
[1743397665534,0.30509681,602.92,601.7,0.33239155]
[1743397665737,3.21024317,602.92,601.71,0.2847583]
[1743397665941,0.30509681,602.91,601.71,0.2847583]
[1743397666138,6.72840927,602.91,601.71,0.2847583]
[1743397666438,8.9430561,602.9,601.71,0.2847583]
[1743397666638,6.03790974,602.89,601.72,0.3323805]
[1743397666839,6.03790974,602.89,601.73,0.2847583]
[1743397666840,2.43910864,602.88,601.73,0.2847583]
[1743397667039,0.30509681,602.87,601.74,0.33236946]
[1743397667240,1.12587059,602.87,601.75,0.2847583]
[1743397667433,0.30509681,602.86,601.76,0.33235841]
[1743397667635,2.43910864,602.86,601.77,0.2847583]
[1743397667835,0.59405775,602.85,601.78,0.33234736]
[1743397668035,0.30509681,602.84,601.79,0.2847583]
[1743397668241,1.12587059,602.84,601.8,0.33233632]
[1743397668437,0.30509681,602.83,601.81,0.2847583]
[1743397668638,2.43910864,602.83,601.82,0.33232527]
[1743397668846,0.30509681,602.82,601.83,0.2847583]
[1743397669037,6.03790974,602.82,601.84,0.33231423]
[1743397669340,2.43741286,602.81,601.85,0.2847583]
[1743397669541,0.30509681,602.8,601.86,0.33230319]
[1743397669835,2.43741286,602.8,601.87,0.2847583]
[1743397670040,0.59404576,602.79,601.88,0.33229215]
[1743397670243,0.30509681,602.78,601.88,0.33229215]
[1743397670741,2.43741286,602.78,601.88,0.33229215]
[1743397671047,0.30509681,602.77,601.88,0.33229215]
[1743397671240,1.12521837,602.77,601.88,0.33229215]
[1743397671437,0.30509681,602.76,601.88,0.33229215]
[1743397671837,2.43714202,602.76,601.88,0.33229215]
[1743397672043,0.30509681,602.75,601.88,0.33229215]
[1743397672539,0.30509681,602.78,601.88,0.33229215]
[1743397672738,0.30509681,602.77,601.88,0.33229215]
[1743397672937,0.30509681,602.76,601.88,0.33229215]
[1743397673143,0.30509681,602.78,601.88,0.33229215]
[1743397674144,1.918,602.77,601.88,0.33229215]
[1743397674443,0.30509681,602.76,601.88,0.33229215]
[1743397675539,6.03182259,602.76,601.88,0.33229215]
[1743397675741,5.34228838,602.75,601.88,0.33229215]
[1743397675939,6.03182259,602.74,601.88,0.33229215]
[1743397676140,2.43714202,602.73,601.88,0.33229215]
[1743397676338,0.30509681,602.72,601.88,0.33229215]
[1743397676539,1.1251142,602.72,601.88,0.33229215]
[1743397676743,0.30509681,602.71,601.88,0.33229215]
[1743397677046,4.70381014,602.71,601.88,0.33229215]
[1743397677239,0.82001739,602.7,601.88,0.33229215]
[1743397677441,2.20258684,602.7,601.88,0.33229215]
[1743397677943,0.82001739,602.7,601.88,0.33229215]
[1743397678349,0.28911218,602.71,601.88,0.33229215]
[1743397678649,2.90514636,602.74,601.88,0.33229215]
[1743397678850,8.63240827,602.74,601.88,0.33229215]
[1743397679050,5.72726191,602.73,601.88,0.33229215]
[1743397679250,0.82001739,602.72,601.88,0.33229215]
[1743397679543,3.72516375,602.72,601.88,0.33229215]
[1743397679752,3.59496144,602.71,601.88,0.33229215]
[1743397679948,0.82001739,602.7,601.88,0.33229215]
[1743397680948,3.72516375,602.7,601.88,0.33229215]
[1743397681148,3.59538221,602.69,601.88,0.33229215]
[1743397681349,0.82001739,602.68,601.88,0.33229215]
[1743397681549,3.72516375,602.68,601.88,0.33229215]
[1743397681846,1.38256945,602.67,601.88,0.33229215]
[1743397682043,2.20258684,602.67,601.88,0.33229215]
[1743397682451,5.72799014,602.75,601.88,0.33229215]
[1743397682648,2.13249965,602.74,601.88,0.33229215]
[1743397682850,0.82001739,602.74,601.88,0.33229215]
[1743397683046,4.01432999,602.74,601.88,0.33229215]
[1743397683249,3.59549049,602.73,601.88,0.33229215]
[1743397683453,5.72799014,602.73,601.88,0.33229215]
[1743397683650,2.13249965,602.72,601.88,0.33229215]
[1743397683849,3.72516375,602.72,601.88,0.33229215]
[1743397684051,3.59549049,602.71,601.88,0.33229215]
[1743397684246,1.11736398,602.7,601.88,0.33229215]
[1743397684451,6.84550598,602.7,601.88,0.33229215]
[1743397684647,4.41550788,602.69,601.88,0.33229215]
[1743397684851,2.20258684,602.68,601.88,0.33229215]
[1743397685048,1.38256945,602.68,601.88,0.33229215]
[1743397685253,2.90514636,602.69,601.88,0.33229215]
[1743397685649,4.41657283,602.74,601.88,0.33229215]
[1743397685851,0.28915182,602.68,601.88,0.33229215]
[1743397687654,3.72564791,602.74,601.88,0.33229215]
[1743397687950,3.59650058,602.73,601.88,0.33229215]
[1743397688154,0.82050155,602.72,601.88,0.33229215]
[1743397688349,1.93786553,602.72,601.88,0.33229215]
[1743397688655,5.53436611,602.72,601.88,0.33229215]
[1743397688854,4.01477811,602.71,601.88,0.33229215]
[1743397689154,2.203071,602.7,601.88,0.33229215]
[1743397689954,0.2891302,602.71,601.88,0.33229215]
[1743397690755,5.04026391,602.74,601.88,0.33229215]
[1743397690961,3.59831799,602.73,601.88,0.33229215]
[1743397691156,0.82050155,602.72,601.88,0.33229215]
[1743397691449,1.93786553,602.72,601.88,0.33229215]
[1743397691651,5.53618352,602.72,601.88,0.33229215]
[1743397691852,1.10966659,602.71,601.88,0.33229215]
[1743397692057,4.70798458,602.71,601.88,0.33229215]
[1743397692257,0.82050155,602.7,601.88,0.33229215]
[1743397692654,2.13626803,602.7,601.88,0.33229215]
[1743397692854,3.72564791,602.7,601.88,0.33229215]
[1743397693052,3.59831799,602.69,601.88,0.33229215]
[1743397693254,0.82050155,602.68,601.88,0.33229215]
[1743397693457,5.73513977,602.69,601.88,0.33229215]
[1743397693654,2.13682178,602.68,601.88,0.33229215]
[1743397693860,3.72564791,602.68,601.88,0.33229215]
[1743397694061,3.59831799,602.67,601.88,0.33229215]
[1743397694262,5.73513977,602.67,601.88,0.33229215]
[1743397694461,0.82050155,602.66,601.88,0.33229215]
[1743397694653,1.11736398,602.66,601.88,0.33229215]
[1743397694855,5.53618352,602.66,601.88,0.33229215]
[1743397695060,0.82050155,602.65,601.88,0.33229215]
[1743397695254,2.203071,602.65,601.88,0.33229215]
[1743397695459,5.10821736,602.65,601.88,0.33229215]
[1743397695659,2.203071,602.64,601.88,0.33229215]
[1743397696361,0.28916504,602.71,601.88,0.33229215]
[1743397696757,2.13735295,602.74,601.88,0.33229215]
[1743397696958,0.82050155,602.74,601.88,0.33229215]
[1743397697156,3.72564791,602.74,601.88,0.33229215]
[1743397697359,3.60285076,602.73,601.88,0.33229215]
[1743397697559,5.74020371,602.73,601.88,0.33229215]
[1743397697761,3.25471693,602.72,601.88,0.33229215]
[1743397698058,7.1467111,602.72,601.88,0.33229215]
[1743397698262,5.74020371,602.71,601.88,0.33229215]
[1743397698468,2.13735295,602.7,601.88,0.33229215]
[1743397698668,0.82050155,602.7,601.88,0.33229215]
[1743397699268,3.72564791,602.7,601.88,0.33229215]
[1743397699463,3.60285076,602.69,601.88,0.33229215]
[1743397699765,0.82050155,602.68,601.88,0.33229215]
[1743397699970,1.38256945,602.69,601.88,0.33229215]
[1743397699971,2.203071,602.69,601.88,0.33229215]
[1743397700363,4.4256788,602.69,601.88,0.33229215]
[1743397700569,2.203071,602.68,601.88,0.33229215]
[1743397700768,5.74387421,602.75,601.88,0.33229215]
[1743397700965,0.28914822,602.68,601.88,0.33229215]
[1743397702566,2.49911158,602.68,601.88,0.33229215]
[1743397702774,2.20996336,602.68,601.88,0.33229215]
[1743397702972,0.28899214,602.67,601.88,0.33229215]
[1743397707468,1.1142964,602.67,601.88,0.33229215]
[1743397707669,2.50584193,602.67,601.88,0.33229215]
[1743397707866,4.73287957,602.67,601.88,0.33229215]
[1743397708072,0.82530426,602.66,601.88,0.33229215]
[1743397708273,3.73045062,602.66,601.88,0.33229215]
[1743397708472,3.61891659,602.65,601.88,0.33229215]
[1743397708675,0.82530426,602.64,601.88,0.33229215]
[1743397708868,2.21684979,602.65,601.88,0.33229215]
[1743397709270,0.28897774,602.73,601.88,0.33229215]
[1743397709769,1.114282,602.73,601.88,0.33229215]
[1743397709972,6.05433985,602.73,601.88,0.33229215]
[1743397710273,3.90790031,602.73,601.88,0.33229215]
[1743397710474,0.82579433,602.72,601.88,0.33229215]
[1743397710674,3.73094069,602.72,601.88,0.33229215]
[1743397710974,3.73094069,602.72,601.89,0.28482813]
[1743397710975,1.39239241,602.71,601.89,0.28482813]
[1743397711173,4.4460651,602.71,601.9,0.3322811]
[1743397711475,2.21818674,602.7,601.9,0.3322811]
[1743397711773,2.90514636,602.7,601.91,0.28476827]
[1743397711974,2.90514636,602.7,601.92,0.33227006]
[1743397712170,2.90514636,602.7,601.93,0.28476827]
[1743397712473,1.3924421,602.76,601.94,0.33225902]
[1743397712668,1.918,602.77,601.95,0.28476827]
[1743397712871,1.918,602.77,601.96,0.33224798]
[1743397713177,1.918,602.77,601.97,0.28476827]
[1743397713368,1.918,602.77,601.98,0.33223695]
[1743397713566,1.918,602.77,601.99,0.28476827]
[1743397713770,1.918,602.77,602.0,0.33222591]
[1743397713968,1.918,602.77,602.01,0.28476827]
[1743397714172,1.918,602.77,602.02,0.61680998]
[1743397714370,1.918,602.77,602.03,0.61680446]
[1743397714673,1.918,602.77,602.04,0.61679895]
[1743397714871,1.918,602.77,602.05,0.61679343]
[1743397715067,1.918,602.77,602.06,0.3321928]
[1743397715570,1.918,602.77,602.07,0.28456977]
[1743397715772,1.918,602.77,602.08,0.33218176]
[1743397716173,1.918,602.77,602.09,0.2845072]
[1743397716369,1.918,602.77,602.1,0.33217073]
[1743397716573,1.918,602.77,602.11,0.2845072]
[1743397716775,1.918,602.77,602.12,0.3321597]
[1743397716971,1.918,602.77,602.13,0.2845072]
[1743397717177,1.918,602.77,602.14,0.33214866]
[1743397717375,1.918,602.77,602.15,0.2845072]
[1743397717574,1.918,602.77,602.15,0.61665035]
[1743397717771,1.918,602.77,602.16,0.61664483]
[1743397717976,1.918,602.77,602.16,0.33213763]
[1743397721680,1.918,602.77,602.17,0.28454369]
[1743397722085,1.918,602.77,602.16,0.33213763]
[1743397723279,0.28896094,603.01,602.16,0.33213763]
[1743397723682,2.14266713,603.07,602.16,0.33213763]
[1743397723981,3.72971529,603.07,602.16,0.33213763]
[1743397724182,3.61535102,603.06,602.16,0.33213763]
[1743397724384,1.11736398,603.05,602.16,0.33213763]
[1743397724582,6.87538213,603.05,602.16,0.33213763]
[1743397724778,5.75801815,603.04,602.16,0.33213763]
[1743397724986,5.75801815,603.03,602.16,0.33213763]
[1743397725182,2.14266713,603.02,602.16,0.33213763]
[1743397725385,0.82410274,603.02,602.16,0.33213763]
[1743397725682,3.72971529,603.02,602.16,0.33213763]
[1743397725883,3.61535102,603.01,602.16,0.33213763]
[1743397726084,5.75801815,603.01,602.16,0.33213763]
[1743397726284,0.82410274,603.0,602.16,0.33213763]
[1743397726484,2.90561255,603.0,602.16,0.33213763]
[1743397726679,7.34506631,603.0,602.16,0.33213763]
[1743397726886,4.43945376,602.99,602.16,0.33213763]
[1743397727085,0.82410274,602.98,602.16,0.33213763]
[1743397727287,3.7287548,602.98,602.16,0.33213763]
[1743397727486,1.38801143,602.97,602.16,0.33213763]
[1743397727687,2.21115368,602.97,602.16,0.33213763]
[1743397728190,0.28901374,602.96,602.16,0.33213763]
[1743397732392,2.49924341,602.96,602.16,0.33213763]
[1743397732790,2.21022967,602.97,602.16,0.33213763]
[1743397732992,0.2888614,602.95,602.16,0.33213763]
[1743397734192,2.49903682,602.95,602.16,0.33213763]
[1743397734792,0.2888614,602.95,602.16,0.33213763]
[1743397735698,2.21017542,602.97,602.16,0.33213763]
[1743397735997,0.2888614,602.94,602.16,0.33213763]
[1743397737998,0.2888614,602.94,602.07,0.28898374]
[1743397738698,2.21006756,602.97,601.03,2.52044129]
[1743397738898,2.21006756,602.97,601.07,2.52044129]
[1743397739099,0.28898494,602.93,602.07,0.28898494]
[1743397739495,0.28898494,602.93,601.07,2.52044129]
[1743397739693,2.21006756,602.97,601.08,0.28460551]
[1743397739897,2.21006756,602.97,601.09,0.28460551]
[1743397740200,2.21006756,602.97,601.11,2.52044129]
[1743397740401,2.21006756,602.97,601.12,0.28460551]
[1743397740602,2.21006756,602.97,601.13,0.28460551]
[1743397740794,2.21006756,602.97,601.14,0.28460551]
[1743397741198,2.21006756,602.97,601.15,0.28460551]
[1743397741502,1.38743199,602.97,601.16,0.28460551]
[1743397741701,2.50479597,602.98,601.17,0.28460551]
[1743397741904,1.11736398,602.98,601.18,0.28460551]
[1743397742103,1.668,602.99,601.2,2.52044129]
[1743397742297,1.668,602.99,601.21,0.28460551]
[1743397742498,1.668,602.99,601.2,2.52044129]
[1743397742698,1.668,602.99,601.21,0.28452822]
[1743397742902,1.668,602.99,601.22,0.28452822]
[1743397743200,1.668,602.99,601.23,0.28452822]
[1743397743404,1.668,602.99,601.24,0.28452822]
[1743397743599,1.668,602.99,601.25,0.28452822]
[1743397743804,1.668,602.99,601.26,0.28452822]
[1743397743998,1.668,602.99,601.2,2.52044129]
[1743397743999,1.668,602.99,601.27,0.28452822]
[1743397744208,1.668,602.99,601.28,0.28452822]
[1743397744505,1.668,602.99,601.29,0.28450795]
[1743397744705,1.668,602.99,601.3,0.28450795]
[1743397744907,1.668,602.99,601.31,0.28450795]
[1743397745106,1.668,602.99,601.32,0.28450795]
[1743397745307,1.668,602.99,601.33,0.28450795]
[1743397745605,1.668,602.99,601.34,0.28450795]
[1743397745808,1.668,602.99,601.35,0.28450795]
[1743397746005,1.668,602.99,601.36,0.28450795]
[1743397746205,1.668,602.99,601.37,0.28450795]
[1743397746502,1.668,602.99,601.38,0.28450795]
[1743397746707,1.668,602.99,601.39,0.28450795]
[1743397746902,1.668,602.99,601.4,0.28450795]
[1743397747103,1.668,602.99,601.41,0.28450795]
[1743397747307,1.668,602.99,601.42,0.28450795]
[1743397747508,1.668,602.99,601.2,0.28450795]
[1743397747708,1.668,602.99,601.25,2.52044129]
[1743397748108,1.668,602.99,601.26,0.28449315]
[1743397748309,3.87799454,602.99,601.27,0.28449315]
[1743397748602,3.87799454,602.99,601.28,0.28449315]
[1743397748807,3.87799454,602.99,601.07,2.52044129]
[1743397748808,1.11736398,602.98,601.29,0.28449315]
[1743397749009,3.61631227,602.98,601.3,0.28449315]
[1743397749210,3.61631227,602.98,601.31,0.28449315]
[1743397749405,3.61631227,602.98,601.28,0.28449315]
[1743397749611,3.61631227,602.98,601.29,0.28449315]
[1743397749910,5.40154153,602.98,601.3,0.28453479]
[1743397750110,2.20999454,602.97,601.28,0.28453479]
[1743397750311,2.20999454,602.97,601.29,0.28453479]
[1743397750611,2.20999454,602.97,601.3,0.28453479]
[1743397750910,2.20999454,602.97,601.31,0.28453479]
[1743397751213,2.20999454,602.97,601.32,0.28453479]
[1743397751412,2.20999454,602.97,601.21,0.28453479]
[1743397751604,2.20999454,602.97,601.22,0.28453479]
[1743397751808,2.20999454,602.97,601.23,0.28453479]
[1743397752005,2.20999454,602.97,601.21,0.28453479]
[1743397752206,0.28894535,603.01,601.22,0.28894535]
[1743397752403,0.28894535,603.01,601.23,0.28453479]
[1743397753205,1.11736398,603.24,601.23,0.28453479]
[1743397753510,8.64996397,603.32,601.23,0.28453479]